fUST/lending_fUST_20240730
["ID","MTS","AMOUNT","RATE_DAILY","PERIOD"]
[333650775,1722304241635,-500.0,0.00013698,2]
[333650776,1722304241644,-1069.8,0.00013698,2]
[333650777,1722304241654,-500.0,0.00013698,2]
[333650778,1722304241665,-1230.49,0.00013698,2]
[333650779,1722304241675,-1230.49,0.00013698,2]
[333650780,1722304241684,-1230.49,0.00013698,2]
[333650781,1722304241693,-1230.49,0.00013698,2]
[333650782,1722304241703,-1230.49,0.00013698,2]
[333650783,1722304241712,-1230.49,0.00013698,2]
[333650784,1722304241722,-1230.49,0.00013698,2]
[333650785,1722304241731,-1230.49,0.00013698,2]
[333650786,1722304241741,-3270.37,0.00013698,2]
[333650787,1722304241750,-1230.49,0.00013698,2]
[333650788,1722304241760,-1230.49,0.00013698,2]
[333650789,1722304241769,-561.14,0.00013698,2]
[333650790,1722304241778,-1230.49,0.00013698,2]
[333650791,1722304241788,-500.0,0.00013698,2]
[333650792,1722304241802,-1230.49,0.00013698,2]
[333650793,1722304241812,-1230.49,0.00013698,2]
[333650794,1722304241822,-500.0,0.00013698,2]
[333650795,1722304241832,-500.0,0.00013698,2]
[333650796,1722304241843,-501.64391402,0.00013698,2]
[333650797,1722304241852,-500.0,0.00013698,2]
[333650798,1722304241862,-3034.73,0.00013698,2]
[333650799,1722304241873,-1784.23,0.00013698,2]
[333650800,1722304241883,-874.45,0.00013698,2]
[333650801,1722304241893,-500.0,0.00013698,2]
[333650802,1722304241903,-1462.87,0.00013698,2]
[333650803,1722304241918,-500.0,0.00013698,2]
[333650804,1722304241928,-547.02,0.00013698,2]
[333650805,1722304241937,-634.81,0.00013698,2]
[333650806,1722304241947,-501.27116887,0.00013698,2]
[333650807,1722304241958,-500.0,0.00013698,2]
[333650808,1722304241969,-500.0,0.00013698,2]
[333650809,1722304241979,-856.6,0.00013698,2]
[333650810,1722304241989,-1052.89,0.00013698,2]
[333650811,1722304241999,-1192.19,0.00013698,2]
[333650812,1722304242009,-1839.52,0.00013698,2]
[333650813,1722304242019,-7483.01,0.00013698,2]
[333650814,1722304242030,-716.51,0.00013698,2]
[333650815,1722304242040,-1303.98,0.00013698,2]
[333650816,1722304242053,-500.0,0.00013698,2]
[333650817,1722304242063,-500.0,0.00013698,2]
[333650818,1722304242073,-574.6,0.00013698,2]
[333650819,1722304242082,-500.0,0.00013698,2]
[333650820,1722304242169,-500.0,0.00013698,2]
[333650821,1722304242179,-500.0,0.00013698,2]
[333650822,1722304242189,-500.0,0.00013698,2]
[333650823,1722304242199,-500.0,0.00013698,2]
[333650824,1722304242210,-2053.41,0.00013698,2]
[333650825,1722304242220,-500.0,0.00013698,2]
[333650826,1722304242230,-500.0,0.00013698,2]
[333650827,1722304242242,-1450.78,0.00013698,2]
[333650828,1722304242255,-995.03,0.00013698,2]
[333650829,1722304242265,-500.0,0.00013698,2]
[333650830,1722304242276,-500.0,0.00013698,2]
[333650831,1722304242286,-500.0,0.00013698,2]
[333650832,1722304242296,-1946.52,0.00013698,2]
[333650833,1722304242306,-500.0,0.00013698,2]
[333650834,1722304242316,-712.14,0.00013698,2]
[333650835,1722304242327,-500.0,0.00013698,2]
[333650836,1722304242336,-500.0,0.00013698,2]
[333650837,1722304242346,-500.0,0.00013698,2]
[333650838,1722304242355,-500.0,0.00013698,2]
[333650839,1722304242366,-503.84670253,0.00013698,2]
[333650840,1722304242376,-332.32148358,0.00013698,2]
[333650841,1722304242386,-936.48,0.00013698,2]
[333650842,1722304242396,-500.0,0.00013698,2]
[333650843,1722304242408,-500.0,0.00013698,2]
[333650844,1722304242418,-1613.63,0.00013698,2]
[333650845,1722304242430,-500.0,0.00013698,2]
[333650846,1722304242440,-500.5349979,0.00013698,2]
[333650847,1722304242452,-500.0,0.00013698,2]
[333650848,1722304242463,-500.0,0.00013698,2]
[333650849,1722304242474,-3863.22,0.00013698,2]
[333650850,1722304242484,-500.0,0.00013698,2]
[333650851,1722304242493,-500.0,0.00013698,2]
[333650852,1722304242503,-509.03300182,0.00013698,2]
[333650853,1722304242513,-500.0,0.00013698,2]
[333650854,1722304242524,-500.0,0.00013698,2]
[333650855,1722304242534,-500.0,0.00013698,2]
[333650856,1722304242546,-500.0,0.00013698,2]
[333650857,1722304242556,-711.75,0.00013698,2]
[333650858,1722304242566,-500.0,0.00013698,2]
[333650859,1722304242576,-1734.76,0.00013698,2]
[333650860,1722304242587,-500.0,0.00013698,2]
[333650861,1722304242597,-500.0,0.00013698,2]
[333650862,1722304242607,-500.0,0.00013698,2]
[333650863,1722304242616,-9265.63,0.00013698,2]
[333650864,1722304242626,-2505.01,0.00013698,2]
[333650865,1722304242635,-1097.8,0.00013698,2]
[333650866,1722304242645,-521.79459093,0.00013698,2]
[333650867,1722304242656,-646.21,0.00013698,2]
[333650868,1722304242667,-500.0,0.00013698,2]
[333650869,1722304242677,-500.0,0.00013698,2]
[333650870,1722304242687,-802.35,0.00013698,2]
[333650871,1722304242696,-651.52,0.00013698,2]
[333650872,1722304242706,-500.0,0.00013698,2]
[333650873,1722304242716,-500.0,0.00013698,2]
[333650874,1722304242726,-500.0,0.00013698,2]
[333650875,1722304242736,-2191.89,0.00013698,2]
[333650876,1722304242746,-640.38,0.00013698,2]
[333650877,1722304242756,-500.0,0.00013698,2]
[333650878,1722304242765,-11181.45,0.00013698,2]
[333650879,1722304242775,-500.0,0.00013698,2]
[333650880,1722304242789,-500.0,0.00013698,2]
[333650881,1722304242799,-500.0,0.00013698,2]
[333650882,1722304242809,-500.0,0.00013698,2]
[333650883,1722304242819,-500.0,0.00013698,2]
[333650884,1722304242829,-500.0,0.00013698,2]
[333650885,1722304242839,-500.0,0.00013698,2]
[333650886,1722304242849,-500.0,0.00013698,2]
[333650887,1722304242859,-500.0,0.00013698,2]
[333650888,1722304242870,-479.2282588,0.00013698,2]
[333650889,1722304242881,-573.24,0.00013698,2]
[333650890,1722304242890,-500.0,0.00013698,2]
[333650891,1722304242900,-503.4263676,0.00013698,2]
[333650892,1722304242911,-500.0,0.00013698,2]
[333650893,1722304242921,-500.0,0.00013698,2]
[333650894,1722304242931,-500.0,0.00013698,2]
[333650895,1722304242940,-640.54214073,0.00013698,2]
[333650896,1722304242950,-500.0,0.00013698,2]
[333650897,1722304242960,-500.0,0.00013698,2]
[333650898,1722304242970,-472.26058711,0.00013698,2]
[333650922,1722304243372,-2671.60419396,0.00013224,2]
[333650923,1722304243382,-793.18036,0.000136,2]
[333650924,1722304243391,-219.502496,0.000136,2]
[333650925,1722304243401,-793.18036,0.00013688,2]
[333650926,1722304243413,-793.18036,0.00013688,2]
[333650927,1722304243423,-27.73941289,0.00013698,2]
[333650928,1722304243433,-500.0,0.00013698,2]
[333650929,1722304243443,-500.0,0.00013698,2]
[333650930,1722304243453,-497.00281715,0.00013698,2]
[333651006,1722305432502,-300.0,9.997e-05,2]
[333651008,1722305432512,-136.33522896,9.998e-05,2]
[333651011,1722305432525,-426.98215575,9.998e-05,2]
[333651642,1722305438673,-9355.91257704,9.998e-05,2]
[333651644,1722305438682,-154.84136807,9.999e-05,2]
[333651647,1722305438692,-626.04680674,9.999e-05,2]
[333651649,1722305438705,-154.74467129,0.0001,2]
[333651651,1722305438715,-420.0,0.00010997,2]
[333651653,1722305438725,-15644.73719176,0.0001165,2]
[333651656,1722305438738,-9255.26280824,0.0001165,2]
[333651658,1722305438748,-200.0,0.00012986,2]
[333651660,1722305438758,-150.05,0.00013431,2]
[333651662,1722305438768,-150.0,0.00013431,2]
[333651664,1722305438778,-506.0,0.00013431,2]
[333651666,1722305438787,-1410.0,0.00013431,2]
[333651668,1722305438797,-5308.80312147,0.00013578,2]
[333651670,1722305438807,-369.18180623,0.0001359,2]
[333651672,1722305438817,-294.0793213,0.000136,2]
[333651674,1722305438827,-294.0793213,0.000136,2]
[333651676,1722305438837,-369.18180621,0.0001366,2]
[333651678,1722305438848,-11409.3516095,0.00013688,2]
[333651689,1722305438938,-28869.31366338,0.00013688,2]
[333651691,1722305438950,-869.41441266,0.00013688,2]
[333651694,1722305438962,-2750.36822423,0.00013688,2]
[333651856,1722305440749,-159373.40435225,0.00013688,2]
[333651859,1722305440763,-10177.44423398,0.00013688,2]
[333651861,1722305440773,-9223.88482547,0.00013698,5]
[333652011,1722305443665,-1973.78376149,0.00013698,5]
[333652012,1722305443903,-818.13,0.00013698,5]
[333652042,1722305799701,500.0,0.0001,6]
[333652078,1722306632658,-300.0,9.998e-05,2]
[333652080,1722306632668,-300.0,9.998e-05,2]
[333652082,1722306632679,-413.96966663,9.999e-05,2]
[333652094,1722306632783,-173.00784069,9.999e-05,2]
[333652096,1722306632794,-241.04658408,9.999e-05,2]
[333652098,1722306632804,-247.44444111,9.999e-05,2]
[333652100,1722306632813,-154.91018214,9.999e-05,2]
[333652102,1722306632823,-404.51278902,9.999e-05,2]
[333652103,1722306632833,-320.04232624,9.999e-05,2]
[333652105,1722306632842,-543.59113275,9.999e-05,2]
[333652107,1722306632852,-154.84771535,9.999e-05,2]
[333652109,1722306632863,-154.83688258,9.999e-05,2]
[333652110,1722306632872,-795.47305394,9.999e-05,2]
[333652111,1722306632882,-288.81255956,9.999e-05,2]
[333652112,1722306632892,-267.17967799,9.999e-05,2]
[333652113,1722306632902,-188.41667774,9.999e-05,2]
[333652114,1722306632911,-160.32310374,9.999e-05,2]
[333652115,1722306632920,-154.74758449,9.999e-05,2]
[333652116,1722306632930,-342.3986341,9.999e-05,2]
[333652117,1722306632939,-601.43144442,9.999e-05,2]
[333652118,1722306632948,-404.13707109,9.999e-05,2]
[333652119,1722306632959,-180.66952732,9.999e-05,2]
[333652120,1722306632968,-201.66734339,9.999e-05,2]
[333652121,1722306632979,-154.96539913,9.999e-05,2]
[333652122,1722306632988,-665.77320378,9.999e-05,2]
[333652123,1722306632998,-728.27983145,9.999e-05,2]
[333652124,1722306633007,-212.05146375,9.999e-05,2]
[333652125,1722306633017,-249.33681603,9.999e-05,2]
[333652126,1722306633027,-154.7975834,9.999e-05,2]
[333652127,1722306633036,-154.8655773,9.999e-05,2]
[333652128,1722306633045,-204.5418944,9.999e-05,2]
[333652129,1722306633055,-157.32619577,0.0001,2]
[333652130,1722306633064,-2775.58108794,0.0001,2]
[333652131,1722306633074,-201.30377073,0.0001,2]
[333652132,1722306633084,-2753.40843509,0.0001,2]
[333652133,1722306633094,-327.0,0.00010998,2]
[333652134,1722306633103,-24900.0,0.00011842,2]
[333652135,1722306633113,-582.41753839,0.00012121,2]
[333652136,1722306633123,-1629.42771774,0.00012121,2]
[333652137,1722306633132,-157.310705,0.00012341,2]
[333652138,1722306633142,-157.310705,0.00012395,2]
[333652139,1722306633151,-157.310705,0.00012449,2]
[333652140,1722306633162,-157.310705,0.00012502,2]
[333652141,1722306633171,-157.310705,0.00012556,2]
[333652142,1722306633181,-157.310705,0.00012609,2]
[333652143,1722306633191,-157.310705,0.00012663,2]
[333652144,1722306633200,-157.310705,0.00012717,2]
[333652145,1722306633209,-157.310705,0.0001277,2]
[333652146,1722306633219,-157.310705,0.00012824,2]
[333652147,1722306633228,-157.310705,0.00012877,2]
[333652148,1722306633238,-2682.23449993,0.000129,2]
[333652149,1722306633247,-157.310705,0.00012931,2]
[333652150,1722306633257,-153.0,0.00012978,2]
[333652151,1722306633267,-153.0,0.00012978,2]
[333652152,1722306633276,-157.310705,0.00012985,2]
[333652153,1722306633286,-200.0,0.00012986,2]
[333652154,1722306633296,-153.0,0.00013078,2]
[333652155,1722306633305,-473.3940286,0.00013078,2]
[333652156,1722306633315,-153.0,0.00013078,2]
[333652157,1722306633325,-416.1913554,0.000131,2]
[333652158,1722306633336,-293.9641968,0.000131,2]
[333652159,1722306633347,-5309.14259122,0.00013245,2]
[333652160,1722306633356,-506.0,0.0001343,2]
[333652161,1722306633366,-1410.0,0.0001343,2]
[333652162,1722306633375,-1791.47416235,0.00013588,2]
[333652163,1722306633386,-6188.48554155,0.0001359,2]
[333652169,1722306638703,-13714.13803515,0.0001359,2]
[333652171,1722306638714,-1791.47416233,0.00013591,2]
[333652172,1722306638724,-166.80119095,0.00013593,2]
[333652173,1722306638736,-1624.67297138,0.00013593,2]
[333652174,1722306638745,-1791.47416233,0.00013596,2]
[333652175,1722306638754,-1791.47416233,0.00013598,2]
[333652176,1722306638763,-28563.28328956,0.00013598,2]
[333652177,1722306638828,-50819.55953655,0.00013598,2]
[333652178,1722306638838,-34922.86845496,0.00013598,2]
[333652179,1722306638848,-21872.37010805,0.000136,2]
[333652180,1722306638857,-8031.67616505,0.00013655,2]
[333652181,1722306638867,-19902.6235767,0.00013688,2]
[333652182,1722306638877,-17605.74369693,0.00013688,5]
[333652183,1722306638886,-151.0,0.00013688,2]
[333652184,1722306638895,-176.634842,0.00013688,2]
[333652185,1722306638905,-151.354009,0.00013688,2]
[333652186,1722306638915,-176.634842,0.00013688,2]
[333652187,1722306638924,-237.042665,0.00013688,2]
[333652188,1722306638933,-237.042665,0.00013688,2]
[333652189,1722306638943,-151.0,0.00013688,2]
[333652190,1722306638952,-345.459445,0.00013688,2]
[333652191,1722306638962,-345.459445,0.00013688,2]
[333652192,1722306638971,-355.969287,0.00013688,2]
[333652193,1722306638980,-179123.612191,0.00013688,2]
[333652194,1722306638990,-19902.6235767,0.00013689,2]
[333652195,1722306639000,-31559.56877292,0.00013698,5]
[333652196,1722306639009,-2.99718285,0.00013698,2]
[333652197,1722306639019,-500.0,0.00013698,2]
[333652198,1722306639029,-500.0,0.00013698,2]
[333652199,1722306639039,-500.0,0.00013698,2]
[333652200,1722306639048,-503.36752975,0.00013698,2]
[333652201,1722306639058,-500.0,0.00013698,2]
[333652202,1722306639067,-500.0,0.00013698,2]
[333652203,1722306639077,-500.0,0.00013698,2]
[333652204,1722306639087,-579.92649508,0.00013698,2]
[333652205,1722306639096,-500.0,0.00013698,2]
[333652206,1722306639106,-500.0,0.00013698,2]
[333652207,1722306639116,-500.0,0.00013698,2]
[333652208,1722306639126,-500.0,0.00013698,2]
[333652209,1722306639139,-525.65409885,0.00013698,2]
[333652210,1722306639158,-500.0,0.00013698,2]
[333652211,1722306639174,-500.0,0.00013698,2]
[333652212,1722306639190,-500.0,0.00013698,2]
[333652213,1722306639210,-500.0,0.00013698,2]
[333652214,1722306639228,-500.0,0.00013698,2]
[333652215,1722306639245,-500.0,0.00013698,2]
[333652216,1722306639261,-500.0,0.00013698,2]
[333652217,1722306639277,-500.0,0.00013698,2]
[333652218,1722306639291,-500.0,0.00013698,2]
[333652219,1722306639305,-500.0,0.00013698,2]
[333652220,1722306639320,-500.0,0.00013698,2]
[333652221,1722306639337,-503.89869016,0.00013698,2]
[333652222,1722306639355,-500.0,0.00013698,2]
[333652223,1722306639367,-500.0,0.00013698,2]
[333652224,1722306639380,-500.0,0.00013698,2]
[333652225,1722306639407,-500.0,0.00013698,2]
[333652226,1722306639433,-500.0,0.00013698,2]
[333652227,1722306639461,-500.0,0.00013698,2]
[333652228,1722306639488,-500.0,0.00013698,2]
[333652229,1722306639512,-500.0,0.00013698,2]
[333652230,1722306639537,-500.0,0.00013698,2]
[333652231,1722306639560,-500.0,0.00013698,2]
[333652232,1722306639585,-500.0,0.00013698,2]
[333652233,1722306639609,-500.0,0.00013698,2]
[333652234,1722306639634,-500.0,0.00013698,2]
[333652235,1722306639654,-500.0,0.00013698,2]
[333652236,1722306639669,-500.0,0.00013698,2]
[333652237,1722306639682,-526.88745452,0.00013698,2]
[333652238,1722306639695,-500.0,0.00013698,2]
[333652239,1722306639711,-500.0,0.00013698,2]
[333652240,1722306639728,-503.26744277,0.00013698,2]
[333652241,1722306639742,-516.22,0.00013698,2]
[333652242,1722306639756,-500.0,0.00013698,2]
[333652243,1722306639770,-500.0,0.00013698,2]
[333652244,1722306639784,-500.0,0.00013698,2]
[333652245,1722306639798,-500.0,0.00013698,2]
[333652246,1722306639812,-500.0,0.00013698,2]
[333652247,1722306639827,-500.0,0.00013698,2]
[333652248,1722306639841,-500.0,0.00013698,2]
[333652249,1722306639857,-500.0,0.00013698,2]
[333652250,1722306639870,-500.0,0.00013698,2]
[333652251,1722306639884,-500.0,0.00013698,2]
[333652252,1722306639897,-500.0,0.00013698,2]
[333652253,1722306639910,-500.0,0.00013698,2]
[333652254,1722306639924,-503.56894453,0.00013698,2]
[333652255,1722306639938,-500.0,0.00013698,2]
[333652256,1722306639953,-500.0,0.00013698,2]
[333652257,1722306639972,-500.0,0.00013698,2]
[333652258,1722306639986,-500.0,0.00013698,2]
[333652259,1722306640001,-500.0,0.00013698,2]
[333652260,1722306640017,-500.0,0.00013698,2]
[333652261,1722306640030,-500.0,0.00013698,2]
[333652262,1722306640045,-500.0,0.00013698,2]
[333652263,1722306640059,-500.0,0.00013698,2]
[333652264,1722306640072,-500.0,0.00013698,2]
[333652265,1722306640086,-500.0,0.00013698,2]
[333652266,1722306640100,-584.92984783,0.00013698,2]
[333652267,1722306640200,-500.0,0.00013698,2]
[333652268,1722306640247,-500.0,0.00013698,2]
[333652269,1722306640257,-500.0,0.00013698,2]
[333652270,1722306640267,-500.0,0.00013698,2]
[333652271,1722306640277,-500.0,0.00013698,2]
[333652272,1722306640287,-500.0,0.00013698,2]
[333652273,1722306640296,-500.0,0.00013698,2]
[333652274,1722306640306,-500.00000002,0.00013698,2]
[333652275,1722306640316,-500.0,0.00013698,2]
[333652276,1722306640326,-500.0,0.00013698,2]
[333652277,1722306640336,-500.0,0.00013698,2]
[333652278,1722306640346,-500.0,0.00013698,2]
[333652279,1722306640355,-500.0,0.00013698,2]
[333652280,1722306640365,-500.0,0.00013698,2]
[333652281,1722306640375,-500.0,0.00013698,2]
[333652282,1722306640384,-500.0,0.00013698,2]
[333652283,1722306640394,-500.0,0.00013698,2]
[333652284,1722306640403,-500.0,0.00013698,2]
[333652285,1722306640413,-500.0,0.00013698,2]
[333652286,1722306640423,-500.0,0.00013698,2]
[333652287,1722306640432,-500.0,0.00013698,2]
[333652288,1722306640442,-500.0,0.00013698,2]
[333652289,1722306640451,-500.0,0.00013698,2]
[333652290,1722306640465,-491.29984699,0.00013698,2]
[333652291,1722306640475,-500.0,0.00013698,2]
[333652292,1722306640484,-500.0,0.00013698,2]
[333652293,1722306640493,-500.0,0.00013698,2]
[333652294,1722306640503,-500.0,0.00013698,2]
[333652295,1722306640512,-500.0,0.00013698,2]
[333652296,1722306640522,-500.0,0.00013698,2]
[333652297,1722306640533,-500.0,0.00013698,2]
[333652298,1722306640542,-500.0,0.00013698,2]
[333652299,1722306640555,-500.0,0.00013698,2]
[333652300,1722306640565,-500.0,0.00013698,2]
[333652301,1722306640574,-500.0,0.00013698,2]
[333652302,1722306640585,-500.0,0.00013698,2]
[333652303,1722306640595,-500.0,0.00013698,2]
[333652304,1722306640605,-500.0,0.00013698,2]
[333652305,1722306640614,-500.0,0.00013698,2]
[333652307,1722306640625,-500.0,0.00013698,2]
[333652309,1722306640635,-500.0,0.00013698,2]
[333652311,1722306640644,-500.0,0.00013698,2]
[333652312,1722306640655,-500.0,0.00013698,2]
[333652314,1722306640665,-500.0,0.00013698,2]
[333652315,1722306640675,-500.0,0.00013698,2]
[333652317,1722306640685,-500.0,0.00013698,2]
[333652318,1722306640695,-500.0,0.00013698,2]
[333652319,1722306640706,-500.0,0.00013698,2]
[333652320,1722306640716,-500.0,0.00013698,2]
[333652321,1722306640726,-393.76072345,0.00013698,2]
[333652322,1722306640736,-500.0,0.00013698,2]
[333652323,1722306640746,-500.0,0.00013698,2]
[333652325,1722306640756,-500.0,0.00013698,2]
[333652327,1722306640766,-500.0,0.00013698,2]
[333652329,1722306640775,-500.0,0.00013698,2]
[333652331,1722306640785,-500.0,0.00013698,2]
[333652333,1722306640795,-500.0,0.00013698,2]
[333652335,1722306640805,-500.0,0.00013698,2]
[333652337,1722306640814,-500.0,0.00013698,2]
[333652339,1722306640824,-500.0,0.00013698,2]
[333652341,1722306640834,-500.0,0.00013698,2]
[333652343,1722306640843,-500.0,0.00013698,2]
[333652345,1722306640854,-622.27,0.00013698,2]
[333652347,1722306640864,-500.0,0.00013698,2]
[333652349,1722306640873,-500.0,0.00013698,2]
[333652351,1722306640883,-500.0,0.00013698,2]
[333652353,1722306640893,-500.0,0.00013698,2]
[333652355,1722306640902,-500.0,0.00013698,2]
[333652357,1722306640911,-500.0,0.00013698,2]
[333652359,1722306640921,-500.0,0.00013698,2]
[333652361,1722306640930,-500.0,0.00013698,2]
[333652363,1722306640940,-500.0,0.00013698,2]
[333652364,1722306640950,-500.0,0.00013698,2]
[333652365,1722306640962,-500.0,0.00013698,2]
[333652366,1722306640971,-500.0,0.00013698,2]
[333652367,1722306640981,-500.0,0.00013698,2]
[333652368,1722306640991,-504.10294579,0.00013698,2]
[333652369,1722306641001,-500.0,0.00013698,2]
[333652370,1722306641010,-500.0,0.00013698,2]
[333652371,1722306641020,-500.0,0.00013698,2]
[333652372,1722306641029,-500.0,0.00013698,2]
[333652373,1722306641039,-500.0,0.00013698,2]
[333652374,1722306641048,-500.0,0.00013698,2]
[333652375,1722306641058,-327.57612692,0.00013698,2]
[333652376,1722306641068,-500.0,0.00013698,2]
[333652377,1722306641077,-500.0,0.00013698,2]
[333652378,1722306641087,-500.0,0.00013698,2]
[333652379,1722306641097,-500.0,0.00013698,2]
[333652380,1722306641106,-500.0,0.00013698,2]
[333652381,1722306641116,-500.0,0.00013698,2]
[333652382,1722306641126,-500.0,0.00013698,2]
[333652383,1722306641136,-500.0,0.00013698,2]
[333652384,1722306641146,-500.0,0.00013698,2]
[333652385,1722306641156,-500.0,0.00013698,2]
[333652386,1722306641165,-500.0,0.00013698,2]
[333652387,1722306641175,-500.0,0.00013698,2]
[333652388,1722306641185,-500.0,0.00013698,2]
[333652389,1722306641194,-500.0,0.00013698,2]
[333652390,1722306641204,-500.0,0.00013698,2]
[333652391,1722306641218,-500.0,0.00013698,2]
[333652392,1722306641227,-500.0,0.00013698,2]
[333652393,1722306641236,-500.0,0.00013698,2]
[333652394,1722306641246,-500.0,0.00013698,2]
[333652395,1722306641255,-500.0,0.00013698,2]
[333652396,1722306641265,-500.0,0.00013698,2]
[333652397,1722306641275,-500.0,0.00013698,2]
[333652398,1722306641285,-500.0,0.00013698,2]
[333652399,1722306641294,-500.0,0.00013698,2]
[333652400,1722306641304,-521.85,0.00013698,2]
[333652401,1722306641314,-500.0,0.00013698,2]
[333652402,1722306641324,-500.0,0.00013698,2]
[333652403,1722306641334,-500.0,0.00013698,2]
[333652404,1722306641343,-500.0,0.00013698,2]
[333652405,1722306641356,-500.0,0.00013698,2]
[333652406,1722306641366,-500.0,0.00013698,2]
[333652407,1722306641376,-500.0,0.00013698,2]
[333652408,1722306641387,-500.0,0.00013698,2]
[333652409,1722306641398,-500.0,0.00013698,2]
[333652410,1722306641408,-539.34323484,0.00013698,2]
[333652411,1722306641418,-500.0,0.00013698,2]
[333652412,1722306641429,-500.0,0.00013698,2]
[333652413,1722306641439,-500.0,0.00013698,2]
[333652414,1722306641449,-500.0,0.00013698,2]
[333652415,1722306641461,-500.0,0.00013698,2]
[333652416,1722306641471,-500.0,0.00013698,2]
[333652417,1722306641480,-500.0,0.00013698,2]
[333652418,1722306641490,-500.0,0.00013698,2]
[333652419,1722306641500,-500.0,0.00013698,2]
[333652420,1722306641509,-500.0,0.00013698,2]
[333652421,1722306641519,-500.0,0.00013698,2]
[333652422,1722306641528,-500.0,0.00013698,2]
[333652423,1722306641538,-500.0,0.00013698,2]
[333652424,1722306641550,-500.0,0.00013698,2]
[333652425,1722306641561,-500.0,0.00013698,2]
[333652426,1722306641571,-478.3836698,0.00013698,2]
[333652427,1722306641582,-188.81152226,0.00013698,2]
[333652428,1722306641592,-527.29169554,0.00013698,2]
[333652429,1722306641602,-500.0,0.00013698,2]
[333652430,1722306641613,-500.0,0.00013698,2]
[333652431,1722306641623,-500.0,0.00013698,2]
[333652432,1722306641635,-500.0,0.00013698,2]
[333652433,1722306641646,-500.0,0.00013698,2]
[333652434,1722306641656,-500.0,0.00013698,2]
[333652435,1722306641666,-500.0,0.00013698,2]
[333652436,1722306641676,-501.57485765,0.00013698,2]
[333652437,1722306641686,-500.0,0.00013698,2]
[333652438,1722306641696,-500.0,0.00013698,2]
[333652439,1722306641705,-500.0,0.00013698,2]
[333652440,1722306641717,-500.0,0.00013698,2]
[333652441,1722306641727,-500.0,0.00013698,2]
[333652442,1722306641737,-500.0,0.00013698,2]
[333652443,1722306641747,-500.0,0.00013698,2]
[333652444,1722306641756,-501.02200746,0.00013698,2]
[333652445,1722306641765,-500.0,0.00013698,2]
[333652446,1722306641774,-500.0,0.00013698,2]
[333652447,1722306641784,-500.0,0.00013698,2]
[333652448,1722306641793,-500.0,0.00013698,2]
[333652449,1722306641802,-500.0,0.00013698,2]
[333652450,1722306641811,-467.80790906,0.00013698,2]
[333652451,1722306641821,-500.0,0.00013698,2]
[333652452,1722306641830,-500.0,0.00013698,2]
[333652453,1722306641839,-500.0,0.00013698,2]
[333652454,1722306641849,-500.0,0.00013698,2]
[333652455,1722306641858,-500.0,0.00013698,2]
[333652456,1722306641868,-500.0,0.00013698,2]
[333652457,1722306641878,-500.0,0.00013698,2]
[333652458,1722306641887,-500.0,0.00013698,2]
[333652459,1722306641897,-500.0,0.00013698,2]
[333652460,1722306641906,-500.0,0.00013698,2]
[333652461,1722306641916,-500.0,0.00013698,2]
[333652462,1722306641925,-500.0,0.00013698,2]
[333652463,1722306641935,-500.0,0.00013698,2]
[333652464,1722306642020,-500.0,0.00013698,2]
[333652465,1722306642030,-501.28173754,0.00013698,2]